bitfinex-derivatives/quotes_SOLF0:USTF0_20250127
["timestamp","ask_amount","ask_price","bid_price","bid_amount"]
[1737964827230,24.57675276,227.43,227.27,0.78724705]
[1737964827435,4.4004,227.35,227.28,0.78752864]
[1737964827638,2.3865,227.34,227.27,0.78752864]
[1737964827832,2.3865,227.34,227.21,16.4266488]
[1737964828033,2.3865,227.34,227.29,0.03101124]
[1737964828436,0.03205728,227.31,227.29,0.03101124]
[1737964828830,0.03205728,227.31,227.21,16.4266488]
[1737964829037,0.03205728,227.31,227.21,9.95575874]
[1737964829734,24.60881004,227.31,227.21,9.95575874]
[1737964829941,24.57675276,227.27,227.24,42.54879031]
[1737964830141,24.57675276,227.27,227.24,39.89479031]
[1737964830443,24.57675276,227.27,227.2,425.13238353]
[1737964830633,24.57675276,227.27,227.14,182.57570476]
[1737964831338,24.57675276,227.27,227.15,2.3091]
[1737964831538,24.57675276,227.27,227.14,182.57570476]
[1737964831842,4.4032,227.21,227.18,0.02818891]
[1737964832044,24.60712791,227.23,227.18,0.02818891]
[1737964833146,4.4034,227.2,227.18,0.02818891]
[1737964834040,4.4029,227.22,227.18,0.02818891]
[1737964834246,0.03037515,227.23,227.18,0.02818891]
[1737964834641,4.43317515,227.23,227.18,0.02818891]
[1737964835045,0.03037515,227.23,227.18,0.02818891]
[1737964835946,4.4034,227.2,227.18,0.02818891]
[1737964836145,0.03037515,227.23,227.18,0.02818891]
[1737964837648,24.57675276,227.37,227.18,0.02818891]
[1737964837945,4.4011,227.32,227.2,4.4032]
[1737964838146,4.4011,227.32,227.21,3.26098652]
[1737964838343,24.57675276,227.37,227.22,0.78928652]
[1737964838746,191.0,227.42,227.23,24.57675276]
[1737964838949,0.02861124,227.32,227.27,0.03296434]
[1737964839244,4.3986,227.45,227.31,24.57675276]
[1737964839450,6.06557601,227.46,227.24,25.36603928]
[1737964839451,18.19672804,227.47,227.36,24.57675276]
[1737964839647,18.19672804,227.47,227.4,24.57675276]
[1737964839849,18.19672804,227.47,227.41,0.78928652]
[1737964840048,4.3962,227.57,227.44,4.3986]
[1737964840249,24.57675276,227.57,227.32,29.47675276]
[1737964840549,0.03205528,227.46,227.42,0.03060985]
[1737964841143,4.3968,227.54,227.35,44.31984837]
[1737964841449,0.03189737,227.46,227.42,0.03031737]
[1737964841645,4.3988,227.44,227.42,0.03031737]
[1737964841850,4.3988,227.44,227.42,0.00170613]
[1737964842050,39.91964837,227.49,227.24,39.91964837]
[1737964842252,4.3986,227.45,227.28,39.91964837]
[1737964842451,39.91964837,227.49,227.28,39.91964837]
[1737964843149,0.03351235,227.41,227.36,0.02929622]
[1737964844656,4.3997,227.39,227.36,0.02929622]
[1737964845448,4.3999,227.38,227.36,0.02929622]
[1737964845755,39.95316072,227.41,227.25,1.9618]
[1737964845954,0.03351235,227.41,227.25,1.9618]
[1737964846252,39.91964837,227.45,227.25,1.9618]
[1737964846450,4.4001,227.37,227.25,6.3641]
[1737964846652,39.91964837,227.41,227.25,1.9618]
[1737964847055,4.3995,227.4,227.25,1.9618]
[1737964847255,0.03286598,227.33,227.29,0.02926784]
[1737964847749,4.4006,227.34,227.29,0.02926784]
[1737964847954,39.91964837,227.41,227.25,1.9618]
[1737964848250,0.0317641,227.33,227.29,0.02926784]
[1737964849551,4.4013,227.31,227.29,0.02926784]
[1737964851256,0.0317641,227.33,227.29,0.02926784]
[1737964851850,0.0317641,227.33,227.29,39.91964837]
[1737964852050,0.0317641,227.33,227.31,4.401]
[1737964852355,2.0355,227.5,227.3,2.0231]
[1737964852552,340.52460811,227.56,227.39,4.3996]
[1737964852752,4.3972,227.52,227.37,39.91964837]
[1737964852953,4.3972,227.52,227.38,2.0364]
[1737964853247,2.3922,227.55,227.38,2.0364]
[1737964853248,4.3981,227.47,227.38,2.0364]
[1737964853955,4.42934874,227.47,227.43,0.02867353]
[1737964854154,0.03124874,227.47,227.43,0.02867353]
[1737964855350,0.03124874,227.47,227.3,2.0231]
[1737964855351,4.4002,227.36,227.3,2.0231]
[1737964855555,39.91964837,227.41,227.3,2.0231]
[1737964855955,4.3991,227.42,227.34,4.4005]
[1737964856156,4.3991,227.42,227.3,2.0231]
[1737964856350,4.3991,227.42,227.31,3.03500688]
[1737964856550,4.3995,227.4,227.31,2.2476]
[1737964856753,0.02973509,227.38,227.17,39.91964837]
[1737964856951,39.91964837,227.37,227.13,2.2476]
[1737964857153,4.4014,227.3,227.21,4.403]
[1737964857351,39.91964837,227.37,227.22,0.78840388]
[1737964857557,1.9675,227.39,227.23,0.78840388]
[1737964857857,0.03324154,227.32,227.24,42.95565225]
[1737964858150,0.03324154,227.32,227.27,4.4019]
[1737964858348,39.91964837,227.46,227.25,3.9181]
[1737964858757,0.03371952,227.32,227.28,4.4018]
[1737964858955,4.3999,227.38,227.28,4.4018]
[1737964859255,0.02839826,227.32,227.31,4.4012]
[1737964859755,3.8383,227.48,227.31,0.78740384]
[1737964860051,39.91964837,227.54,227.32,39.91964837]
[1737964860258,4.3979,227.48,227.39,4.3996]
[1737964860453,39.91964837,227.5,227.33,0.78725417]
[1737964860758,4.3996,227.4,227.28,4.4017]
[1737964861059,39.91964837,227.45,227.39,0.03148883]
[1737964861354,4.4012,227.31,227.25,1.8821]
[1737964861558,3.9383,227.44,227.16,1.9102]
[1737964861559,39.91964837,227.37,227.16,1.9102]
[1737964861760,0.0302523,227.3,227.26,0.02961867]
[1737964863358,0.0302523,227.3,227.28,4.4017]
[1737964864052,0.0302523,227.3,227.26,0.02961867]
[1737964864455,0.0302523,227.3,227.26,4.43171867]
[1737964864655,0.0302523,227.3,227.26,0.02961867]
[1737964866953,4.402,227.27,227.26,0.02961867]
[1737964867354,0.0302523,227.3,227.26,0.02961867]
[1737964867856,4.4018,227.28,227.26,0.02961867]
[1737964868153,0.0302523,227.3,227.26,0.02961867]
[1737964868461,39.94990067,227.3,227.07,39.91964837]
[1737964868757,2.3944,227.32,227.1,0.78741329]
[1737964868758,39.91964837,227.25,227.1,0.78741329]
[1737964868953,4.4029,227.23,227.1,0.78741329]
[1737964869154,41.83984837,227.29,227.1,0.78741329]
[1737964869353,1.9202,227.29,227.1,0.78741329]
[1737964869557,0.02871325,227.22,227.11,39.91964837]
[1737964869860,0.02871325,227.22,227.15,39.91964837]
[1737964870062,0.02871325,227.22,227.16,0.78741329]
[1737964870258,0.02871325,227.22,227.21,4.4031]
[1737964871162,0.02871325,227.22,227.17,1.8859]
[1737964871362,0.02871325,227.22,227.18,0.78678171]
[1737964871761,0.02871325,227.22,227.11,39.91964837]
[1737964872063,0.02871325,227.22,227.15,39.91964837]
[1737964872258,0.02871325,227.22,227.16,0.78698789]
[1737964872463,0.02871325,227.22,227.13,0.78698789]
[1737964872663,0.02871325,227.22,227.12,2.0127]
[1737964872855,0.02871325,227.22,227.16,4.404]
[1737964873167,0.02871325,227.22,227.12,2.0127]
[1737964873364,0.02871325,227.22,227.13,0.78727143]
[1737964873863,0.02871325,227.22,227.12,2.0127]
[1737964874064,0.02871325,227.22,227.14,0.78724979]
[1737964874259,0.02871325,227.22,227.13,0.78724979]
[1737964874462,0.02871325,227.22,227.18,4.4037]
[1737964874967,0.02871325,227.22,227.21,4.4031]
[1737964875165,39.91964837,227.42,227.19,39.91964837]
[1737964875367,39.91964837,227.46,227.23,39.91964837]
[1737964875564,39.91964837,227.46,227.24,0.78643045]
[1737964876266,4.3991,227.43,227.32,4.401]
[1737964876463,0.03113236,227.37,227.33,0.03058341]
[1737964876963,39.91964837,227.46,227.33,0.03058341]
[1737964877169,0.02952917,227.37,227.33,0.03058341]
[1737964877470,4.3987,227.45,227.33,4.4007]
[1737964877662,0.0306173,227.37,227.33,4.4007]
[1737964877861,0.0306173,227.37,227.33,0.03058341]
[1737964878168,0.0295584,227.37,227.33,0.03058341]
[1737964878668,0.0295584,227.37,227.36,4.4002]
[1737964878864,194.7148,227.57,227.36,0.78526875]
[1737964879168,2.3383,227.57,227.43,39.91964837]
[1737964879471,39.91964837,227.54,227.32,7.1937]
[1737964879763,39.91964837,227.5,227.33,0.78473334]
[1737964879965,39.91964837,227.46,227.33,0.78473334]
[1737964880171,2.44609447,227.45,227.41,0.02795556]
[1737964880366,4.3994,227.41,227.31,0.78529244]
[1737964880567,4.3994,227.41,227.3,1.965]
[1737964881165,4.3995,227.4,227.3,1.965]
[1737964881666,0.03270167,227.37,227.33,0.03218625]
[1737964883469,4.4005,227.35,227.33,0.03218625]
[1737964883665,0.03270167,227.37,227.17,1.8329]
[1737964883666,39.91964837,227.34,227.17,1.8329]
[1737964883865,2.3975,227.33,227.18,0.78649282]
[1737964884165,2.3975,227.33,227.17,1.8329]
[1737964884670,2.3975,227.33,227.13,1.9817]
[1737964884866,0.03281135,227.27,227.14,0.78696245]
[1737964885071,0.03281135,227.27,227.14,40.70661082]
[1737964885270,0.03281135,227.27,227.18,39.91964837]
[1737964885572,0.03281135,227.27,227.19,0.78696245]
[1737964885773,0.03281135,227.27,227.24,4.4025]
[1737964885975,1.9902,227.4,227.22,39.91964837]
[1737964886174,4.4001,227.37,227.25,4.4022]
[1737964886378,1.9902,227.4,227.23,2.40540785]
[1737964886672,1.9902,227.4,227.24,0.78601682]
[1737964886972,39.91964837,227.46,227.24,0.78601682]
[1737964887166,2.0256,227.48,227.3,39.91964837]
[1737964887474,2.0256,227.48,227.31,1.8067]
[1737964888076,2.3027,227.49,227.34,39.91964837]
[1737964888371,2.3027,227.49,227.35,3.1600517]
[1737964888576,2.3027,227.49,227.35,2.3752]
[1737964888773,0.02814003,227.44,227.39,0.02856036]
[1737964888973,0.02814003,227.44,227.39,4.42816036]
[1737964889277,0.02814003,227.44,227.39,0.02856036]
[1737964889972,2.3057,227.57,227.39,0.02856036]
[1737964890171,2.3057,227.57,227.39,0.81278338]
[1737964890377,2.3057,227.57,227.42,39.91964837]
[1737964890566,2.3057,227.57,227.43,1.8398]
[1737964891278,0.0336279,227.52,227.48,0.03020828]
[1737964891676,4.398,227.48,227.35,6.7755]
[1737964891975,0.0336279,227.52,227.36,1.8505]
[1737964892167,0.0336279,227.52,227.3,39.91964837]
[1737964892168,4.3989,227.44,227.32,4.4009]
[1737964892369,39.91964837,227.46,227.22,39.91964837]
[1737964892574,39.91964837,227.41,227.25,1.8505]
[1737964892775,0.03308779,227.36,227.32,0.03369057]
[1737964893479,4.4005,227.35,227.32,0.03369057]
[1737964893680,0.03308779,227.36,227.32,0.03369057]
[1737964894774,4.4007,227.34,227.32,0.03369057]
[1737964895574,0.03308779,227.36,227.32,0.03369057]
[1737964896681,4.4005,227.35,227.32,0.03369057]
[1737964896883,0.03308779,227.36,227.32,0.03369057]
[1737964897177,39.91964837,227.33,227.26,3.417e-05]
[1737964897482,39.91964837,227.29,227.11,6.2097]
[1737964897883,4.4031,227.22,227.11,6.2097]
[1737964898277,4.4031,227.22,227.12,0.78094408]
[1737964898483,0.02902759,227.19,227.14,0.03023559]
[1737964899178,4.4042,227.16,227.14,0.03023559]
[1737964899683,0.02902759,227.19,227.14,0.03023559]
[1737964899980,4.4041,227.16,227.14,0.03023559]
[1737964900181,0.02902759,227.19,227.04,0.78155968]
[1737964900374,4.4047,227.13,227.05,0.78155968]
[1737964900783,4.4047,227.13,227.02,1.8965]
[1737964901082,4.4047,227.13,227.03,0.78194787]
[1737964901583,0.02939574,227.1,227.03,0.78194787]
[1737964903380,0.02939574,227.1,226.98,82.32]
[1737964903579,0.02939574,227.1,226.99,0.78228416]
[1737964903783,0.02939574,227.1,226.94,3.7871]
[1737964903985,1.8341,227.12,226.95,0.78265205]
[1737964904485,0.02827429,227.04,226.95,0.78265205]
[1737964904787,0.02827429,227.04,226.97,4.4077]
[1737964904977,0.02827429,227.04,226.94,3.7871]
[1737964905286,0.02827429,227.04,226.95,0.78274347]
[1737964906184,0.02827429,227.04,226.88,1.9692]
[1737964906381,0.02827429,227.04,226.89,0.78323899]
[1737964906576,39.91964837,227.05,226.89,0.78323899]
[1737964906777,4.4068,227.03,226.89,0.78323899]
[1737964906981,0.0296308,226.99,226.89,0.78323899]
[1737964907883,39.91964837,226.93,226.88,0.78323899]
[1737964908082,4.4089,226.92,226.81,0.78383094]
[1737964908283,39.91964837,226.89,226.73,9.92808786]
[1737964908679,4.41,226.86,226.75,4.412]
[1737964908889,39.91964837,226.89,226.7,4.3146]
[1737964909083,0.02980009,226.83,226.71,0.7841364]
[1737964909694,4.4111,226.8,226.71,0.7841364]
[1737964909885,39.91964837,226.81,226.62,2.0179]
[1737964910589,0.03140517,226.76,226.62,2.0179]
[1737964910885,0.03140517,226.76,226.63,282.47632714]
[1737964911083,0.03140517,226.76,226.67,283.11230164]
[1737964911580,39.91964837,226.89,226.74,4.4121]
[1737964911788,39.91964837,226.89,226.67,283.11230164]
[1737964911989,39.91964837,226.81,226.67,243.19265327]
[1737964912188,39.91964837,226.85,226.67,243.19265327]
[1737964912389,39.91964837,226.81,226.67,243.19265327]
[1737964912884,0.02812322,226.76,226.72,0.02901391]
[1737964913286,39.91964837,226.85,226.72,0.02901391]
[1737964913492,0.03167782,226.76,226.72,0.02901391]
[1737964913690,39.91964837,226.85,226.72,0.02901391]
[1737964913887,39.91964837,226.79,226.72,0.02901391]
[1737964914191,4.44280277,226.76,226.72,0.02901391]
[1737964914690,0.03090277,226.76,226.72,0.02901391]
[1737964915581,39.91964837,226.75,226.57,0.17803]
[1737964915785,39.91964837,226.75,226.58,2.67619076]
[1737964915990,39.91964837,226.75,226.58,1.8973]
[1737964916190,39.91964837,226.71,226.58,1.8973]
[1737964916388,39.91964837,226.71,226.57,0.17803]
[1737964916787,39.91964837,226.67,226.57,0.17803]
[1737964916984,0.03230609,226.66,226.59,4.4151]
[1737964917284,0.03230609,226.66,226.57,0.17803]
[1737964917482,39.91964837,226.71,226.57,0.17803]
[1737964917687,0.0286249,226.64,226.61,4.4147]
[1737964917886,0.0286249,226.64,226.57,0.17803]
[1737964918891,1.923,226.83,226.63,39.91964837]
[1737964919081,1.923,226.83,226.64,4.5008]
[1737964920084,0.03066331,226.76,226.71,0.03119457]
[1737964920286,44.32904837,226.89,226.71,0.03119457]
[1737964920485,39.91964837,226.85,226.71,0.03119457]
[1737964920683,39.91964837,226.81,226.64,4.5008]
[1737964921387,39.91964837,226.77,226.55,39.91964837]
[1737964921592,0.03300821,226.75,226.48,4.3879]
[1737964921790,4.414,226.65,226.54,4.4161]
[1737964921986,39.91964837,226.69,226.48,4.3879]
[1737964922290,4.4808,226.76,226.55,39.91964837]
[1737964922791,4.4125,226.73,226.63,4.4143]
[1737964923087,0.02942738,226.69,226.64,0.03194373]
[1737964923493,4.4109,226.81,226.63,39.91964837]
[1737964923694,0.03065843,226.69,226.64,0.03014238]
[1737964923996,4.411,226.81,226.64,1.9736]
[1737964924295,2.5089,226.83,226.64,1.9736]
[1737964924691,4.4112,226.8,226.64,1.9736]
[1737964924991,0.02935869,226.76,226.71,0.03299466]
[1737964925496,0.02935869,226.76,226.74,4.4122]
[1737964925694,39.91964837,226.94,226.72,4.329]
[1737964925893,6.4085,226.96,226.75,39.91964837]
[1737964926091,39.91964837,226.94,226.72,4.329]
[1737964926288,4.4098,226.87,226.75,4.412]
[1737964926489,39.91964837,226.9,226.72,4.329]
[1737964926490,39.91964837,226.86,226.72,4.329]
[1737964926894,4.4111,226.8,226.72,2.007]
[1737964927097,4.4111,226.8,226.77,0.0333721]
[1737964927295,39.91964837,226.78,226.54,39.91964837]
[1737964927598,4.4123,226.74,226.58,2.016]
[1737964927991,4.4185,226.79,226.58,2.016]
[1737964928190,39.91964837,226.75,226.58,2.016]
[1737964928397,44.33814837,226.79,226.58,2.016]
[1737964928600,0.02829616,226.69,226.64,0.02849335]
[1737964928798,39.91964837,226.92,226.66,39.91964837]
[1737964928994,4.4096,226.88,226.76,4.4118]
[1737964929195,2.3943,226.92,226.75,39.91964837]
[1737964929601,4.409,226.91,226.78,4.4113]
[1737964929801,2.3943,226.92,226.78,4.4113]
[1737964930102,4.4091,226.91,226.79,4.4113]
[1737964930302,0.02820966,226.87,226.82,0.0312233]
[1737964930706,4.4099,226.86,226.82,0.0312233]
[1737964931002,0.02820966,226.87,226.82,0.0312233]
[1737964933200,0.02820966,226.87,226.83,4.4104]
[1737964933398,0.02820966,226.87,226.84,1.9797]
[1737964933706,39.91964837,227.0,226.84,1.9797]
[1737964934403,39.91964837,226.92,226.71,39.91964837]
[1737964934605,4.4099,226.87,226.74,4.4122]
[1737964934905,0.02816035,226.84,226.79,0.03160157]
[1737964937402,4.4106,226.83,226.79,0.03160157]
[1737964937602,0.02816035,226.84,226.79,0.03160157]
[1737964938007,4.4109,226.81,226.66,2.2397]
[1737964938208,39.94780872,226.84,226.66,2.2397]
[1737964938409,39.91964837,226.84,226.66,2.2397]
[1737964938914,193.3615,226.9,226.67,1.8838]
[1737964939215,2.3615,226.9,226.75,39.91964837]
[1737964939513,0.02798324,226.81,226.76,1.97385645]
[1737964939907,230.91964837,227.0,226.79,39.91964837]
[1737964940111,6.4137,226.99,226.79,39.91964837]
[1737964940412,4.4086,226.93,226.82,4.4107]
[1737964940614,6.4137,226.99,226.79,39.91964837]
[1737964940811,6.4137,226.99,226.83,39.91964837]
[1737964941213,0.03237748,226.91,226.87,0.03037912]
[1737964941710,6.06400838,227.09,226.87,39.95002749]
[1737964941906,2.2822,227.08,226.88,1.8613]
[1737964942312,2.2822,227.08,226.91,39.91964837]
[1737964943014,58.12986789,227.19,226.97,0.03289808]
[1737964943216,6.1935,227.17,226.97,0.03289808]
[1737964943415,39.91964837,227.15,226.91,39.91964837]
[1737964943607,39.91964837,227.11,226.91,39.91964837]
[1737964943811,39.91964837,227.07,226.89,2.2205]
[1737964944009,39.91964837,227.03,226.88,1.8613]
[1737964944207,1.834,227.06,226.8,2.3532]
[1737964944208,39.91964837,226.99,226.8,2.3532]
[1737964944411,4.4108,226.82,226.69,4.4131]
[1737964944618,39.91964837,226.95,226.71,39.91964837]
[1737964944815,1.8614,226.94,226.71,39.91964837]
[1737964945214,1.8614,226.94,226.75,39.91964837]
[1737964945712,0.0319458,226.87,226.82,0.03040773]
[1737964947517,39.91964837,226.86,226.68,1.8349]
[1737964947911,4.4108,226.82,226.68,1.8349]
[1737964948309,39.91964837,226.9,226.68,1.8349]
[1737964948618,39.91964837,226.86,226.68,1.8349]
[1737964948919,4.4085,226.94,226.8,44.33064837]
[1737964949114,41.84364837,227.01,226.8,39.91964837]
[1737964949417,1.924,227.01,226.81,1.8349]
[1737964949616,7.98800838,227.01,226.81,3.8603]
[1737964949815,4.4081,226.96,226.83,4.4105]
[1737964950012,4.4081,226.96,226.89,0.03287359]
[1737964950316,0.03299205,226.93,226.89,0.03287359]
[1737964954421,39.95264042,226.93,226.89,7.359e-05]
[1737964954816,4.4091,226.91,226.89,7.359e-05]
[1737964955222,39.95264042,226.93,226.74,1.9383]
[1737964955424,39.91964837,226.88,226.68,42.30664837]
[1737964955725,2.2288,226.87,226.68,42.30664837]
[1737964956430,4.4116,226.78,226.69,4.4131]
[1737964956618,0.03259737,226.8,226.75,0.02955152]
[1737964957218,0.03259737,226.8,226.78,4.4114]
[1737964958225,0.03259737,226.8,226.75,0.02955152]
[1737964959325,0.03259737,226.8,226.75,4.44145152]
[1737964959823,0.03259737,226.8,226.75,0.02955152]
[1737964964723,4.4118,226.77,226.75,0.02955152]
[1737964965427,4.4113,226.79,226.75,0.02955152]
[1737964965723,0.03259737,226.8,226.75,0.02955152]
[1737964967823,230.91964837,227.01,226.76,39.91964837]
[1737964968029,234.77524837,227.01,226.8,39.91964837]
[1737964968327,3.8556,227.01,226.84,39.91964837]
[1737964968921,0.02943,226.95,226.9,0.02855605]
[1737964969127,4.4089,226.91,226.9,5.605e-05]
[1737964969524,2.4067,226.92,226.78,0.77766075]
[1737964969725,39.91964837,226.89,226.69,2.68086075]
[1737964969931,39.91964837,226.89,226.7,0.77802647]
[1737964970527,39.91964837,226.84,226.7,0.77802647]
[1737964970731,4.4114,226.79,226.69,4.4131]
[1737964971030,0.02899998,226.82,226.77,0.0285933]
[1737964971230,1.9601,226.88,226.72,4.4125]
[1737964971430,1.881,226.9,226.72,39.91964837]
[1737964971727,0.02987712,226.82,226.77,0.03200929]
[1737964974634,1.976,226.97,226.77,0.03200929]
[1737964974931,1.976,226.97,226.8,39.91964837]
[1737964975231,2.4011,226.99,226.84,39.91964837]
[1737964975440,4.4071,227.01,226.9,4.409]
[1737964975632,2.4011,227.06,226.88,39.91964837]
[1737964975932,4.43857154,226.98,226.93,0.0280567]
[1737964976125,39.95061991,226.98,226.93,5.67e-05]
[1737964976326,39.91964837,226.98,226.78,82.52]
[1737964976527,39.91964837,226.98,226.79,2.67817654]
[1737964976733,39.91964837,227.02,226.8,40.69712491]
[1737964976934,2.4011,227.05,226.84,39.91964837]
[1737964977237,4.4081,226.96,226.85,4.4101]
[1737964977535,0.0336981,226.97,226.92,0.03155982]
[1737964977930,2.4011,227.05,226.92,4.44025982]
[1737964978138,0.03083031,226.97,226.92,0.03155982]
[1737964978533,39.91964837,227.1,226.92,0.03155982]
[1737964978730,2.2981,227.11,226.92,39.95120819]
[1737964978930,2.2981,227.11,226.92,39.91964837]
[1737964979140,4.4058,227.08,226.92,39.91964837]
[1737964979337,2.2981,227.11,226.92,39.91964837]
[1737964979732,58.12986789,227.18,226.96,39.91964837]
[1737964979940,0.03290019,227.04,226.99,0.03158781]
[1737964980442,0.03290019,227.04,226.99,0.03087195]
[1737964980935,6.06400838,227.25,227.0,39.91964837]
[1737964980936,2.0519,227.21,227.0,39.91964837]
[1737964981136,2.3802,227.23,227.08,39.91964837]
[1737964981336,6.06400838,227.25,227.12,39.91964837]
[1737964981533,6.06400838,227.25,227.13,2.3352]
[1737964981937,39.91964837,227.16,226.94,39.91964837]
[1737964982146,39.91964837,227.16,226.85,4.84]
[1737964982147,39.91964837,227.12,226.95,5.17566235]
[1737964982339,39.91964837,227.08,226.95,4.4006]
[1737964982537,39.91964837,227.12,227.03,0.03173759]
[1737964982739,0.0310441,227.04,227.03,0.03173759]
[1737964982938,39.91964837,227.16,227.03,0.03173759]
[1737964983147,39.91964837,227.2,227.03,0.03173759]
[1737964983436,4.4042,227.16,227.01,39.91964837]
[1737964983641,39.91964837,227.2,227.01,39.91964837]
[1737964983843,39.91964837,227.2,226.97,39.91964837]
[1737964984040,1.9397,227.19,227.0,4.4071]
[1737964984247,0.0330488,227.13,227.08,0.03086956]
[1737964985250,1.9769,227.24,227.13,4.4046]
[1737964985450,1.9397,227.29,227.09,42.33894837]
[1737964985846,1.9397,227.29,227.1,39.91964837]
[1737964986046,39.91964837,227.23,227.02,2.3223]
[1737964986253,39.91964837,227.19,227.02,2.3223]
[1737964986453,1.9943,227.22,227.02,2.3223]
[1737964986454,0.03346388,227.15,227.1,0.03172976]
[1737964987951,2.0233,227.3,227.13,39.91964837]
[1737964988148,191.0,227.38,227.1,0.03172976]
[1737964988149,2.0046,227.35,227.21,39.91964837]
[1737964988355,4.3501,227.35,227.14,2.3223]
[1737964988551,4.4028,227.23,227.14,2.3223]
[1737964988951,39.91964837,227.32,227.14,2.3223]
[1737964989153,0.03057628,227.21,227.16,0.03303107]
[1737964989455,0.03057628,227.21,227.14,2.3223]
[1737964989653,39.91964837,227.28,227.16,0.03322234]
[1737964989855,0.0331442,227.2,227.16,0.03322234]
[1737964990054,4.4047,227.13,227.05,4.4062]
[1737964990355,0.0331442,227.2,227.16,0.02939121]
[1737964990555,39.91964837,227.24,227.16,0.02939121]
[1737964990753,6.4661,227.23,227.06,2.0548]
[1737964990951,0.02844131,227.2,227.06,2.0548]
[1737964991257,2.3968,227.23,227.18,0.0283489]
[1737964991457,4.0693,227.31,227.09,39.91964837]
[1737964991754,3.208e-05,227.15,227.13,4.4046]
[1737964991960,6.4661,227.31,227.18,0.03374606]
[1737964992160,4.4034,227.2,227.18,0.03374606]
[1737964992354,39.91964837,227.28,227.07,4.4057]
[1737964992559,39.91964837,227.24,227.06,2.0548]
[1737964992959,39.91964837,227.24,227.09,4.4054]
[1737964993159,39.91964837,227.28,227.07,1.8814]
[1737964993359,6.4661,227.31,227.1,39.91964837]
[1737964993560,0.03221779,227.2,227.15,0.03215024]
[1737964993860,191.0,227.43,227.18,39.91964837]
[1737964994061,42.32004837,227.4,227.19,4.1462]
[1737964994457,39.91964837,227.36,227.19,4.1462]
[1737964994662,4.4014,227.31,227.23,4.4026]
[1737964994862,42.32004837,227.4,227.23,4.4026]
[1737964995063,0.02927995,227.3,227.25,0.02780702]
[1737964995363,0.02927995,227.3,227.25,4.43000702]
[1737964995567,507.2742279,227.54,227.26,39.91964837]
[1737964995755,42.31044837,227.5,227.26,39.91964837]
[1737964996157,42.31044837,227.5,227.3,39.91964837]
[1737964996360,2.3908,227.5,227.3,39.91964837]
[1737964996564,39.91964837,227.42,227.22,39.91964837]
[1737964996765,3.8416,227.41,227.22,39.91964837]
[1737964997265,3.8416,227.41,227.19,4.1462]
[1737964997266,0.03185306,227.34,227.3,8.894e-05]
[1737964997460,4.4012,227.31,227.3,8.894e-05]
[1737964997665,39.95150143,227.34,227.09,4.4487]
[1737964997862,39.91964837,227.28,227.09,4.4487]
[1737964998058,3.8416,227.3,227.1,39.91964837]
[1737964998756,39.91964837,227.28,227.09,4.4487]
[1737964998960,0.03111882,227.22,227.05,2.006]
[1737964999359,2.2469,227.23,227.06,39.91964837]
[1737964999566,4.4036,227.19,227.06,39.91964837]
[1737964999757,2.2469,227.23,227.06,39.91964837]
[1737965000159,2.2469,227.23,227.11,39.91964837]
[1737965000366,0.02905071,227.17,227.12,0.03244379]
[1737965000558,0.02905071,227.17,227.12,2.04174379]
[1737965000757,4.4032,227.21,227.12,2.0093]
[1737965000958,2.2469,227.29,227.12,2.03914911]
[1737965001158,0.03386697,227.17,227.12,2.03914911]
[1737965001362,2.2469,227.29,227.12,2.0093]
[1737965001563,39.91964837,227.24,227.05,2.006]
[1737965001868,4.4047,227.13,227.12,4.024e-05]
[1737965002265,36.31332837,227.24,227.0,1.8649]
[1737965002659,36.31332837,227.24,227.03,39.91964837]
[1737965003067,0.02947302,227.14,227.1,0.02822606]
[1737965003469,36.31332837,227.24,227.03,39.91964837]
[1737965003667,4.4049,227.12,227.1,0.03008839]
[1737965003869,0.03292595,227.14,227.1,8.839e-05]
[1737965004170,39.91964837,227.12,226.9,177.84824504]
[1737965004364,39.91964837,227.08,226.92,1.894]
[1737965005170,39.91964837,227.08,226.98,0.03358914]
[1737965005171,0.02911086,227.02,226.98,0.03358914]
[1737965005368,4.4073,227.0,226.98,8.914e-05]
[1737965005571,44.32694837,227.0,226.98,8.914e-05]
[1737965005863,44.32694837,227.0,226.75,46.20584837]
[1737965005864,4.3265,226.99,226.75,46.20584837]
[1737965006069,39.91964837,226.96,226.75,46.20584837]
[1737965006268,39.91964837,226.96,226.75,6.2862]
[1737965006472,39.91964837,226.92,226.75,6.2862]
[1737965006867,4.60297165,227.07,226.75,6.2862]
[1737965007067,4.4043,227.15,227.05,39.91964837]
[1737965007265,2.2763,227.22,227.05,39.91964837]